[Event "*** Titled Tuesday Blitz"]
[Site "Chess.com"]
[Date "2021.02.16"]
[Round "3"]
[White "Onischuk_V"]
[Black "mbojan"]
[Result "0-1"]
[WhiteElo "2852"]
[BlackElo "2636"]
[TimeControl "180+1"]
[EndTime "10:31:35 PST"]
[Termination "mbojan won on time"]

1. Nf3 {[%clk 0:03:00.9]} 1... g6 {[%clk 0:03:00.9]} 2. g3 {[%clk 0:03:01.1]}
2... Bg7 {[%clk 0:03:00.9]} 3. Bg2 {[%clk 0:03:01.7]} 3... e5 {[%clk 0:03:01.4]}
4. O-O {[%clk 0:03:02.3]} 4... Ne7 {[%clk 0:03:01.9]} 5. d3 {[%clk 0:03:01.8]}
5... d6 {[%clk 0:03:02.1]} 6. c4 {[%clk 0:03:01.1]} 6... O-O {[%clk 0:03:01.9]}
7. Nc3 {[%clk 0:03:01.2]} 7... h6 {[%clk 0:03:02.3]} 8. d4 {[%clk 0:02:32.1]}
8... Nd7 {[%clk 0:03:01.9]} 9. e4 {[%clk 0:02:24]} 9... exd4 {[%clk 0:02:45.5]}
10. Nxd4 {[%clk 0:02:23.5]} 10... Nc6 {[%clk 0:02:46]} 11. Nc2 {[%clk
0:02:09.4]} 11... Nde5 {[%clk 0:02:45.4]} 12. Ne3 {[%clk 0:02:08.7]} 12... Nd4
{[%clk 0:02:40]} 13. f4 {[%clk 0:01:50.8]} 13... Nd7 {[%clk 0:02:22.9]} 14. b3
{[%clk 0:01:19.8]} 14... c5 {[%clk 0:01:46]} 15. Bb2 {[%clk 0:01:18.3]} 15...
Nf6 {[%clk 0:01:46.3]} 16. Qd2 {[%clk 0:01:15.2]} 16... Re8 {[%clk 0:01:43.6]}
17. Rae1 {[%clk 0:01:14.4]} 17... Bd7 {[%clk 0:01:25.3]} 18. Ned5 {[%clk
0:01:13.9]} 18... Nxd5 {[%clk 0:01:21.8]} 19. Nxd5 {[%clk 0:01:04.1]} 19... Bc6
{[%clk 0:01:21.9]} 20. Nc3 {[%clk 0:00:59.5]} 20... a6 {[%clk 0:01:19.5]} 21.
Ne2 {[%clk 0:00:47.3]} 21... Nxe2+ {[%clk 0:01:00.7]} 22. Qxe2 {[%clk
0:00:46.5]} 22... Bxb2 {[%clk 0:00:51.4]} 23. Qxb2 {[%clk 0:00:45.9]} 23... Re6
{[%clk 0:00:52]} 24. Qd2 {[%clk 0:00:33.5]} 24... Kg7 {[%clk 0:00:36.6]} 25. Re3
{[%clk 0:00:19.7]} 25... Qf6 {[%clk 0:00:28.4]} 26. f5 {[%clk 0:00:16.1]} 26...
Re5 {[%clk 0:00:22.7]} 27. fxg6 {[%clk 0:00:16]} 27... Qxg6 {[%clk 0:00:23.6]}
28. Ref3 {[%clk 0:00:16.2]} 28... Rae8 {[%clk 0:00:10.2]} 29. Rxf7+ {[%clk
0:00:12.9]} 29... Qxf7 {[%clk 0:00:11.1]} 30. Rxf7+ {[%clk 0:00:12.9]} 30...
Kxf7 {[%clk 0:00:12]} 31. Qxh6 {[%clk 0:00:12.4]} 31... Bxe4 {[%clk 0:00:11.1]}
32. Bxe4 {[%clk 0:00:11.9]} 32... Rxe4 {[%clk 0:00:12]} 33. Kg2 {[%clk
0:00:09.1]} 33... Re2+ {[%clk 0:00:11.8]} 34. Kh3 {[%clk 0:00:09.3]} 34... Rxa2
{[%clk 0:00:11.4]} 35. Qxd6 {[%clk 0:00:08.4]} 35... Ree2 {[%clk 0:00:11.1]} 36.
Qxc5 {[%clk 0:00:07.2]} 36... Rxh2+ {[%clk 0:00:10.8]} 37. Kg4 {[%clk
0:00:07.7]} 37... Rhf2 {[%clk 0:00:10.7]} 38. Qd5+ {[%clk 0:00:07]} 38... Kg6
{[%clk 0:00:10.6]} 39. Qxb7 {[%clk 0:00:06.9]} 39... a5 {[%clk 0:00:11]} 40.
Qe4+ {[%clk 0:00:06.5]} 40... Kf6 {[%clk 0:00:10.7]} 41. c5 {[%clk 0:00:05.4]}
41... Rfc2 {[%clk 0:00:08.5]} 42. Qd4+ {[%clk 0:00:03.4]} 42... Kg6 {[%clk
0:00:06]} 43. Qd6+ {[%clk 0:00:03.3]} 43... Kf7 {[%clk 0:00:06.2]} 44. Kf5
{[%clk 0:00:03]} 44... Rf2+ {[%clk 0:00:05.8]} 45. Kg5 {[%clk 0:00:03]} 45...
Rac2 {[%clk 0:00:03.1]} 46. g4 {[%clk 0:00:01.9]} 46... Rf1 {[%clk 0:00:02.3]}
0-1

[Event "*** Titled Tuesday Blitz"]
[Site "Chess.com"]
[Date "2021.02.16"]
[Round "3"]
[White "hansen"]
[Black "Goryachkina"]
[Result "1-0"]
[WhiteElo "2929"]
[BlackElo "2659"]
[TimeControl "180+1"]
[EndTime "10:31:36 PST"]
[Termination "hansen won by checkmate"]

1. e4 {[%clk 0:02:56.1]} 1... c5 {[%clk 0:02:59.5]} 2. Nf3 {[%clk 0:02:55.5]}
2... Nc6 {[%clk 0:02:59.4]} 3. Bb5 {[%clk 0:02:49.3]} 3... g6 {[%clk 0:02:58.8]}
4. O-O {[%clk 0:02:48.3]} 4... Bg7 {[%clk 0:02:58.6]} 5. Bxc6 {[%clk 0:02:46.5]}
5... dxc6 {[%clk 0:02:58.1]} 6. h3 {[%clk 0:02:46.4]} 6... Nf6 {[%clk
0:02:57.9]} 7. d3 {[%clk 0:02:45.9]} 7... Nd7 {[%clk 0:02:51.1]} 8. Nc3 {[%clk
0:02:44.5]} 8... e5 {[%clk 0:02:47]} 9. a3 {[%clk 0:02:42.4]} 9... Qe7 {[%clk
0:02:27.1]} 10. Bd2 {[%clk 0:02:03.3]} 10... O-O {[%clk 0:02:17.7]} 11. Qc1
{[%clk 0:02:03.2]} 11... f5 {[%clk 0:02:02.5]} 12. exf5 {[%clk 0:01:57.1]} 12...
gxf5 {[%clk 0:02:02.6]} 13. Bh6 {[%clk 0:01:54.9]} 13... Qf6 {[%clk 0:01:31.5]}
14. Bxg7 {[%clk 0:01:49]} 14... Kxg7 {[%clk 0:01:31.7]} 15. Re1 {[%clk 0:01:49]}
15... b6 {[%clk 0:01:17.7]} 16. Qe3 {[%clk 0:01:40.1]} 16... Re8 {[%clk
0:01:12.7]} 17. b4 {[%clk 0:01:39.3]} 17... c4 {[%clk 0:00:54.7]} 18. dxc4
{[%clk 0:01:10.9]} 18... e4 {[%clk 0:00:53]} 19. Rad1 {[%clk 0:01:11.2]} 19...
Nf8 {[%clk 0:00:40.6]} 20. Qd4 {[%clk 0:00:53.3]} 20... Be6 {[%clk 0:00:37.4]}
21. Qxf6+ {[%clk 0:00:49.7]} 21... Kxf6 {[%clk 0:00:37.5]} 22. Nd4 {[%clk
0:00:50.5]} 22... c5 {[%clk 0:00:19.3]} 23. bxc5 {[%clk 0:00:48.5]} 23... bxc5
{[%clk 0:00:19.1]} 24. Ndb5 {[%clk 0:00:49.2]} 24... Red8 {[%clk 0:00:16.4]} 25.
Nd5+ {[%clk 0:00:45.4]} 25... Kf7 {[%clk 0:00:15.6]} 26. f3 {[%clk 0:00:42.4]}
26... exf3 {[%clk 0:00:13.2]} 27. gxf3 {[%clk 0:00:43.3]} 27... a6 {[%clk
0:00:12.7]} 28. Nbc7 {[%clk 0:00:38.1]} 28... Ra7 {[%clk 0:00:10.7]} 29. Kf2
{[%clk 0:00:31.4]} 29... Bxd5 {[%clk 0:00:09]} 30. Nxd5 {[%clk 0:00:30.9]} 30...
Ne6 {[%clk 0:00:08.9]} 31. Re5 {[%clk 0:00:30]} 31... Nd4 {[%clk 0:00:06.8]} 32.
c3 {[%clk 0:00:29.1]} 32... Ne6 {[%clk 0:00:05.7]} 33. Rxf5+ {[%clk 0:00:27.9]}
33... Kg8 {[%clk 0:00:05.5]} 34. Re1 {[%clk 0:00:26]} 34... Ng7 {[%clk
0:00:03.4]} 35. Rf6 {[%clk 0:00:23.6]} 35... Rf7 {[%clk 0:00:03.3]} 36. Rxf7
{[%clk 0:00:22.5]} 36... Kxf7 {[%clk 0:00:03.6]} 37. Re7+ {[%clk 0:00:23.1]}
37... Kf8 {[%clk 0:00:03.8]} 38. Ra7 {[%clk 0:00:22.9]} 38... Rb8 {[%clk
0:00:03.6]} 39. f4 {[%clk 0:00:17.4]} 39... Rb2+ {[%clk 0:00:03.4]} 40. Kf3
{[%clk 0:00:18]} 40... Ne6 {[%clk 0:00:02.9]} 41. h4 {[%clk 0:00:10.5]} 41...
Rb3 {[%clk 0:00:02.8]} 42. f5 {[%clk 0:00:09.6]} 42... Nd4+ {[%clk 0:00:02.9]}
43. Ke4 {[%clk 0:00:10.3]} 43... Nc2 {[%clk 0:00:02.9]} 44. Rxa6 {[%clk
0:00:09.5]} 44... Rxa3 {[%clk 0:00:02.8]} 45. Rc6 {[%clk 0:00:07.7]} 45... Ra4
{[%clk 0:00:02.8]} 46. Rxc5 {[%clk 0:00:06.7]} 46... Na3 {[%clk 0:00:03.4]} 47.
Kd3 {[%clk 0:00:06.5]} 47... Nb1 {[%clk 0:00:03.4]} 48. Rc7 {[%clk 0:00:06.3]}
48... Ra2 {[%clk 0:00:03.3]} 49. Kd4 {[%clk 0:00:06.7]} 49... Rd2+ {[%clk
0:00:03.5]} 50. Ke5 {[%clk 0:00:07.1]} 50... Na3 {[%clk 0:00:03.4]} 51. Kf6
{[%clk 0:00:06.4]} 51... Ke8 {[%clk 0:00:03.9]} 52. Rc8+ {[%clk 0:00:06]} 52...
Kd7 {[%clk 0:00:04.4]} 53. Nb6+ {[%clk 0:00:06.7]} 53... Kd6 {[%clk 0:00:04.9]}
54. c5# {[%clk 0:00:07.4]} 1-0

[Event "*** Titled Tuesday Blitz"]
[Site "Chess.com"]
[Date "2021.02.16"]
[Round "3"]
[White "tteshan"]
[Black "RamyresCoelho"]
[Result "1-0"]
[WhiteElo "2331"]
[BlackElo "2070"]
[TimeControl "180+1"]
[EndTime "10:31:36 PST"]
[Termination "tteshan won by checkmate"]

1. e4 {[%clk 0:02:56.7]} 1... c5 {[%clk 0:03:00.2]} 2. c3 {[%clk 0:02:41.5]}
2... d5 {[%clk 0:02:57.8]} 3. exd5 {[%clk 0:02:41.5]} 3... Qxd5 {[%clk
0:02:58.7]} 4. Nf3 {[%clk 0:02:42.2]} 4... Nc6 {[%clk 0:02:59.1]} 5. d4 {[%clk
0:02:42.8]} 5... cxd4 {[%clk 0:02:58.1]} 6. cxd4 {[%clk 0:02:43.7]} 6... Nf6
{[%clk 0:02:58.6]} 7. Nc3 {[%clk 0:02:43.8]} 7... Qd8 {[%clk 0:02:57.6]} 8. Bd3
{[%clk 0:02:43.6]} 8... e6 {[%clk 0:02:57.9]} 9. O-O {[%clk 0:02:43.5]} 9... Bd6
{[%clk 0:02:58.3]} 10. Bg5 {[%clk 0:02:40.6]} 10... h6 {[%clk 0:02:57.6]} 11.
Bh4 {[%clk 0:02:39.1]} 11... g5 {[%clk 0:02:57.6]} 12. Bg3 {[%clk 0:02:37.5]}
12... Bxg3 {[%clk 0:02:58.1]} 13. hxg3 {[%clk 0:02:37.2]} 13... Kf8 {[%clk
0:02:54.4]} 14. Bc2 {[%clk 0:02:34.3]} 14... g4 {[%clk 0:02:49]} 15. d5 {[%clk
0:01:51.8]} 15... Nxd5 {[%clk 0:02:40.9]} 16. Nd2 {[%clk 0:01:31.8]} 16... Nxc3
{[%clk 0:02:38.3]} 17. bxc3 {[%clk 0:01:32.7]} 17... Bd7 {[%clk 0:02:29.6]} 18.
Qxg4 {[%clk 0:01:30.8]} 18... Qg5 {[%clk 0:02:24.4]} 19. Qe2 {[%clk 0:01:23]}
19... f5 {[%clk 0:02:17.1]} 20. Nf3 {[%clk 0:01:21.3]} 20... Qf6 {[%clk
0:02:15.9]} 21. Rad1 {[%clk 0:01:17.2]} 21... Rd8 {[%clk 0:02:12.5]} 22. Rd6
{[%clk 0:01:04.8]} 22... Bc8 {[%clk 0:01:45.3]} 23. Rxd8+ {[%clk 0:00:49.4]}
23... Nxd8 {[%clk 0:01:46.2]} 24. Rd1 {[%clk 0:00:47.3]} 24... Kg7 {[%clk
0:01:41.4]} 25. Ne5 {[%clk 0:00:46.2]} 25... Nf7 {[%clk 0:01:38.1]} 26. f4
{[%clk 0:00:39.2]} 26... Nxe5 {[%clk 0:01:37.3]} 27. Qxe5 {[%clk 0:00:36.8]}
27... Qxe5 {[%clk 0:01:37.2]} 28. fxe5 {[%clk 0:00:37.7]} 28... Rf8 {[%clk
0:01:32.9]} 29. Rd4 {[%clk 0:00:35.3]} 29... b6 {[%clk 0:01:30.5]} 30. Kf2
{[%clk 0:00:33.6]} 30... Rf7 {[%clk 0:01:30.1]} 31. Bb3 {[%clk 0:00:31.1]} 31...
Re7 {[%clk 0:01:23.3]} 32. Ke3 {[%clk 0:00:29.7]} 32... Bb7 {[%clk 0:01:20.8]}
33. Rd2 {[%clk 0:00:29.9]} 33... Be4 {[%clk 0:01:18.7]} 34. Kf4 {[%clk 0:00:29]}
34... Kf7 {[%clk 0:01:14.8]} 35. g4 {[%clk 0:00:25.7]} 35... Kg6 {[%clk
0:01:10]} 36. gxf5+ {[%clk 0:00:22.6]} 36... exf5 {[%clk 0:01:10.9]} 37. g4
{[%clk 0:00:20.4]} 37... fxg4 {[%clk 0:00:49.6]} 38. Kxe4 {[%clk 0:00:20.1]}
38... h5 {[%clk 0:00:50.2]} 39. Kf4 {[%clk 0:00:20.4]} 39... Re8 {[%clk
0:00:47.9]} 40. Rd6+ {[%clk 0:00:19.9]} 40... Kg7 {[%clk 0:00:47.2]} 41. e6
{[%clk 0:00:19.7]} 41... Rf8+ {[%clk 0:00:46]} 42. Kg5 {[%clk 0:00:20]} 42... g3
{[%clk 0:00:42.8]} 43. e7 {[%clk 0:00:20.2]} 43... Re8 {[%clk 0:00:42.8]} 44.
Rg6+ {[%clk 0:00:19.5]} 44... Kh7 {[%clk 0:00:41.7]} 45. Kf6 {[%clk 0:00:16.4]}
45... h4 {[%clk 0:00:36.9]} 46. Rg8 {[%clk 0:00:14.4]} 46... Rxe7 {[%clk
0:00:07.6]} 47. Kxe7 {[%clk 0:00:12.7]} 47... Kh6 {[%clk 0:00:08.5]} 48. Kf6
{[%clk 0:00:12.3]} 48... Kh5 {[%clk 0:00:09.4]} 49. Bd1+ {[%clk 0:00:11.9]}
49... Kh6 {[%clk 0:00:08.1]} 50. Rh8# {[%clk 0:00:12.2]} 1-0

[Event "*** Titled Tuesday Blitz"]
[Site "Chess.com"]
[Date "2021.02.16"]
[Round "3"]
[White "ljuks68"]
[Black "Berardino"]
[Result "0-1"]
[WhiteElo "2388"]
[BlackElo "2596"]
[TimeControl "180+1"]
[EndTime "10:31:38 PST"]
[Termination "Berardino won on time"]

1. e4 {[%clk 0:02:58.3]} 1... c5 {[%clk 0:02:59.2]} 2. Nf3 {[%clk 0:02:53]} 2...
b6 {[%clk 0:02:58]} 3. d4 {[%clk 0:02:52.4]} 3... cxd4 {[%clk 0:02:58.9]} 4.
Nxd4 {[%clk 0:02:53]} 4... Bb7 {[%clk 0:02:58.2]} 5. Nc3 {[%clk 0:02:53.2]} 5...
Nf6 {[%clk 0:02:57]} 6. f3 {[%clk 0:02:47.1]} 6... e6 {[%clk 0:02:56.9]} 7. g4
{[%clk 0:02:39.4]} 7... d5 {[%clk 0:02:35.6]} 8. e5 {[%clk 0:02:34.7]} 8... Nfd7
{[%clk 0:02:35.7]} 9. Bf4 {[%clk 0:02:34.5]} 9... Nc6 {[%clk 0:02:31.6]} 10.
Nxc6 {[%clk 0:02:33.1]} 10... Bxc6 {[%clk 0:02:32.5]} 11. Qd2 {[%clk 0:02:19.9]}
11... d4 {[%clk 0:02:23.3]} 12. Ne4 {[%clk 0:01:59.7]} 12... Bxe4 {[%clk
0:02:21.2]} 13. fxe4 {[%clk 0:01:59.8]} 13... Bc5 {[%clk 0:01:53.7]} 14. O-O-O
{[%clk 0:01:57.8]} 14... a5 {[%clk 0:01:32.4]} 15. h4 {[%clk 0:01:45.9]} 15...
O-O {[%clk 0:01:29.8]} 16. g5 {[%clk 0:01:41.3]} 16... Qc7 {[%clk 0:01:29.6]}
17. h5 {[%clk 0:01:29]} 17... Nxe5 {[%clk 0:01:21.9]} 18. Qh2 {[%clk 0:01:27.8]}
18... Bd6 {[%clk 0:01:17.5]} 19. Kb1 {[%clk 0:01:27.1]} 19... Rad8 {[%clk
0:00:58.7]} 20. h6 {[%clk 0:00:59.2]} 20... g6 {[%clk 0:00:55]} 21. Rxd4 {[%clk
0:00:53.3]} 21... Nf3 {[%clk 0:00:47.6]} 22. Bxd6 {[%clk 0:00:36.5]} 22... Nxh2
{[%clk 0:00:45.7]} 23. Bxc7 {[%clk 0:00:35.8]} 23... Rxd4 {[%clk 0:00:46.6]} 24.
Bd3 {[%clk 0:00:32.2]} 24... Nf3 {[%clk 0:00:46.9]} 25. Bxb6 {[%clk 0:00:31.3]}
25... Rd7 {[%clk 0:00:34.4]} 26. Bxa5 {[%clk 0:00:28.7]} 26... Nxg5 {[%clk
0:00:33.4]} 27. Bc3 {[%clk 0:00:28.4]} 27... f6 {[%clk 0:00:27.7]} 28. a4 {[%clk
0:00:25.9]} 28... Nf3 {[%clk 0:00:18.5]} 29. a5 {[%clk 0:00:18.2]} 29... Nd4
{[%clk 0:00:17]} 30. a6 {[%clk 0:00:15.8]} 30... e5 {[%clk 0:00:16.2]} 31. Bxd4
{[%clk 0:00:11]} 31... Rxd4 {[%clk 0:00:13.6]} 32. b3 {[%clk 0:00:09.7]} 32...
Ra8 {[%clk 0:00:12]} 33. Kb2 {[%clk 0:00:09.6]} 33... Kf8 {[%clk 0:00:10.9]} 34.
Kc3 {[%clk 0:00:07.4]} 34... Ke7 {[%clk 0:00:10.7]} 35. b4 {[%clk 0:00:07.5]}
35... Kd6 {[%clk 0:00:09.5]} 36. b5 {[%clk 0:00:07.2]} 36... Kc7 {[%clk
0:00:10]} 37. Rf1 {[%clk 0:00:06.8]} 37... Rd6 {[%clk 0:00:09.4]} 38. Kb4 {[%clk
0:00:06.1]} 38... Kb6 {[%clk 0:00:09.9]} 39. Bc4 {[%clk 0:00:06]} 39... Rc8
{[%clk 0:00:09.3]} 40. Bd5 {[%clk 0:00:05.5]} 40... Rxc2 {[%clk 0:00:09.4]} 41.
Bc6 {[%clk 0:00:02.8]} 41... Rcxc6 {[%clk 0:00:05.7]} 42. bxc6 {[%clk
0:00:02.2]} 42... Rxc6 {[%clk 0:00:06.6]} 43. Ra1 {[%clk 0:00:02.5]} 43... Ka7
{[%clk 0:00:07.1]} 44. Kb5 {[%clk 0:00:02.7]} 44... Rb6+ {[%clk 0:00:06.2]} 45.
Ka5 {[%clk 0:00:02.2]} 45... Rxa6+ {[%clk 0:00:06.3]} 0-1

[Event "*** Titled Tuesday Blitz"]
[Site "Chess.com"]
[Date "2021.02.16"]
[Round "3"]
[White "jaramsdal"]
[Black "niki_2003"]
[Result "1-0"]
[WhiteElo "2308"]
[BlackElo "2009"]
[TimeControl "180+1"]
[EndTime "10:31:40 PST"]
[Termination "jaramsdal won by checkmate"]

1. e4 {[%clk 0:03:00.9]} 1... c5 {[%clk 0:02:59.3]} 2. Nf3 {[%clk 0:03:01]} 2...
d6 {[%clk 0:02:59.1]} 3. d4 {[%clk 0:03:01.5]} 3... cxd4 {[%clk 0:02:59.3]} 4.
Nxd4 {[%clk 0:03:02.4]} 4... Nf6 {[%clk 0:02:59.4]} 5. Nc3 {[%clk 0:03:02.8]}
5... g6 {[%clk 0:02:59.7]} 6. Be3 {[%clk 0:02:58.3]} 6... Bg7 {[%clk 0:02:59.6]}
7. f3 {[%clk 0:02:58.8]} 7... O-O {[%clk 0:02:59.2]} 8. Bc4 {[%clk 0:02:58.9]}
8... Nc6 {[%clk 0:02:59.3]} 9. Qd2 {[%clk 0:02:59.1]} 9... Bd7 {[%clk
0:02:58.7]} 10. O-O-O {[%clk 0:02:58.8]} 10... Rc8 {[%clk 0:02:58.3]} 11. Bb3
{[%clk 0:02:57.9]} 11... Ne5 {[%clk 0:02:57.6]} 12. Bg5 {[%clk 0:02:57.6]} 12...
Nc4 {[%clk 0:02:55]} 13. Qe2 {[%clk 0:02:57.4]} 13... Na5 {[%clk 0:02:52.1]} 14.
h4 {[%clk 0:02:56.9]} 14... Nxb3+ {[%clk 0:02:50.9]} 15. axb3 {[%clk 0:02:56.7]}
15... Qb6 {[%clk 0:02:47.3]} 16. h5 {[%clk 0:02:44.9]} 16... Nxh5 {[%clk
0:02:36.2]} 17. Nd5 {[%clk 0:02:35.3]} 17... Qc5 {[%clk 0:02:24.9]} 18. Nxe7+
{[%clk 0:02:11.6]} 18... Kh8 {[%clk 0:02:23.1]} 19. Rxh5 {[%clk 0:02:00.2]}
19... Bxd4 {[%clk 0:01:55.8]} 20. Bf6+ {[%clk 0:01:59.2]} 20... Bxf6 {[%clk
0:01:53.4]} 21. Rxc5 {[%clk 0:01:58.9]} 21... Rxc5 {[%clk 0:01:52.1]} 22. Nd5
{[%clk 0:01:59.1]} 22... Bg7 {[%clk 0:01:51]} 23. g4 {[%clk 0:01:57]} 23... Rfc8
{[%clk 0:01:49.6]} 24. c3 {[%clk 0:01:56]} 24... Be6 {[%clk 0:01:48.9]} 25. Kb1
{[%clk 0:01:47.5]} 25... Bxd5 {[%clk 0:01:43.2]} 26. exd5 {[%clk 0:01:45.7]}
26... b5 {[%clk 0:01:40.3]} 27. b4 {[%clk 0:01:41.1]} 27... Rc4 {[%clk
0:01:37.5]} 28. Rh1 {[%clk 0:01:36]} 28... h6 {[%clk 0:01:32.1]} 29. Qe3 {[%clk
0:01:29.7]} 29... Kh7 {[%clk 0:01:26.4]} 30. Qxa7 {[%clk 0:01:27.1]} 30... Rf4
{[%clk 0:01:11.3]} 31. Rf1 {[%clk 0:01:00.2]} 31... Re8 {[%clk 0:01:02.2]} 32.
Qd7 {[%clk 0:00:58.4]} 32... Re3 {[%clk 0:00:59.8]} 33. Qxb5 {[%clk 0:00:54.8]}
33... Rexf3 {[%clk 0:00:58.8]} 34. Rxf3 {[%clk 0:00:54.8]} 34... Rxf3 {[%clk
0:00:58.1]} 35. Qd7 {[%clk 0:00:55.7]} 35... Rf1+ {[%clk 0:00:40.2]} 36. Ka2
{[%clk 0:00:55.4]} 36... Rf2 {[%clk 0:00:38.8]} 37. Kb3 {[%clk 0:00:54.1]} 37...
Rf6 {[%clk 0:00:30.1]} 38. b5 {[%clk 0:00:52.4]} 38... Rf4 {[%clk 0:00:25.3]}
39. b6 {[%clk 0:00:51.6]} 39... Rxg4 {[%clk 0:00:25.1]} 40. Qxg4 {[%clk
0:00:50]} 40... f5 {[%clk 0:00:24.2]} 41. Qg2 {[%clk 0:00:49.3]} 41... f4 {[%clk
0:00:15.2]} 42. b7 {[%clk 0:00:47.7]} 42... f3 {[%clk 0:00:14.8]} 43. Qxf3
{[%clk 0:00:47.1]} 43... h5 {[%clk 0:00:15.3]} 44. b8=N {[%clk 0:00:45.5]} 44...
h4 {[%clk 0:00:16.2]} 45. Qg4 {[%clk 0:00:44.7]} 45... Bf6 {[%clk 0:00:14.9]}
46. Kc2 {[%clk 0:00:44.6]} 46... g5 {[%clk 0:00:14]} 47. Nc6 {[%clk 0:00:44.6]}
47... Kh6 {[%clk 0:00:13.2]} 48. b4 {[%clk 0:00:44]} 48... h3 {[%clk 0:00:11.5]}
49. Qxh3+ {[%clk 0:00:43.6]} 49... Kg6 {[%clk 0:00:12.1]} 50. Qg4 {[%clk
0:00:44.2]} 50... Kf7 {[%clk 0:00:12.7]} 51. b5 {[%clk 0:00:44.3]} 51... Kg7
{[%clk 0:00:13.6]} 52. b6 {[%clk 0:00:44.7]} 52... Kg6 {[%clk 0:00:14.4]} 53. b7
{[%clk 0:00:45]} 53... Kf7 {[%clk 0:00:15]} 54. b8=N {[%clk 0:00:44.5]} 54...
Kg6 {[%clk 0:00:15.9]} 55. Nb4 {[%clk 0:00:42.9]} 55... Bxc3 {[%clk 0:00:16.8]}
56. Kxc3 {[%clk 0:00:42.5]} 56... Kh6 {[%clk 0:00:16.9]} 57. Nd3 {[%clk
0:00:42.4]} 57... Kg6 {[%clk 0:00:16.8]} 58. Na6 {[%clk 0:00:42.7]} 58... Kh6
{[%clk 0:00:16.3]} 59. Nc7 {[%clk 0:00:43]} 59... Kg6 {[%clk 0:00:16.2]} 60. Nb5
{[%clk 0:00:43.4]} 60... Kh6 {[%clk 0:00:17]} 61. Nxd6 {[%clk 0:00:42.9]} 61...
Kg7 {[%clk 0:00:17.9]} 62. Ne4 {[%clk 0:00:43.3]} 62... Kh7 {[%clk 0:00:18.5]}
63. d6 {[%clk 0:00:43.7]} 63... Kg6 {[%clk 0:00:18.5]} 64. d7 {[%clk 0:00:43.4]}
64... Kh6 {[%clk 0:00:19.4]} 65. d8=N {[%clk 0:00:42.6]} 65... Kh7 {[%clk
0:00:19.5]} 66. Ne5 {[%clk 0:00:41.1]} 66... Kh8 {[%clk 0:00:20.3]} 67. Ne6
{[%clk 0:00:39.1]} 67... Kg8 {[%clk 0:00:20.1]} 68. Nf6+ {[%clk 0:00:36.9]}
68... Kh8 {[%clk 0:00:18.3]} 69. Nf7# {[%clk 0:00:35.9]} 1-0

[Event "*** Titled Tuesday Blitz"]
[Site "Chess.com"]
[Date "2021.02.16"]
[Round "3"]
[White "HackingKid98"]
[Black "Anton_Demchenko"]
[Result "0-1"]
[WhiteElo "2463"]
[BlackElo "2899"]
[TimeControl "180+1"]
[EndTime "10:31:41 PST"]
[Termination "Anton_Demchenko won by checkmate"]

1. d4 {[%clk 0:03:00.9]} 1... Nf6 {[%clk 0:02:59.3]} 2. c4 {[%clk 0:02:59.9]}
2... g6 {[%clk 0:02:59.9]} 3. g3 {[%clk 0:03:00.2]} 3... Bg7 {[%clk 0:03:00.6]}
4. Bg2 {[%clk 0:03:01.1]} 4... O-O {[%clk 0:03:01.4]} 5. Nf3 {[%clk 0:03:01.2]}
5... d6 {[%clk 0:03:02.3]} 6. O-O {[%clk 0:03:00.3]} 6... Nbd7 {[%clk
0:03:03.2]} 7. Nc3 {[%clk 0:02:59.3]} 7... e5 {[%clk 0:03:03.8]} 8. e4 {[%clk
0:02:58.3]} 8... exd4 {[%clk 0:03:04.1]} 9. Nxd4 {[%clk 0:02:59.2]} 9... Nc5
{[%clk 0:03:04.9]} 10. f3 {[%clk 0:02:58.5]} 10... Re8 {[%clk 0:02:57.9]} 11.
Be3 {[%clk 0:02:57.2]} 11... Nfd7 {[%clk 0:02:58.4]} 12. Qd2 {[%clk 0:02:54.6]}
12... a5 {[%clk 0:02:56.7]} 13. Rac1 {[%clk 0:02:41.6]} 13... Ne5 {[%clk
0:02:47.5]} 14. Nd5 {[%clk 0:02:16.4]} 14... c6 {[%clk 0:02:45.6]} 15. Nf4
{[%clk 0:02:13.8]} 15... a4 {[%clk 0:02:42.8]} 16. Rfd1 {[%clk 0:02:12.6]} 16...
Qb6 {[%clk 0:01:59.3]} 17. b4 {[%clk 0:01:08.2]} 17... axb3 {[%clk 0:01:56.6]}
18. Nxb3 {[%clk 0:00:47.3]} 18... Nxb3 {[%clk 0:01:55.9]} 19. axb3 {[%clk
0:00:40.5]} 19... Qxb3 {[%clk 0:01:54.9]} 20. Bf2 {[%clk 0:00:20.1]} 20... Nxf3+
{[%clk 0:01:50.5]} 21. Bxf3 {[%clk 0:00:20.7]} 21... Qxf3 {[%clk 0:01:51.2]} 22.
Qxd6 {[%clk 0:00:19.2]} 22... Ra2 {[%clk 0:01:45.7]} 23. Rd2 {[%clk 0:00:17.5]}
23... Be5 {[%clk 0:01:39.5]} 24. Qd3 {[%clk 0:00:15.9]} 24... Qxd3 {[%clk
0:01:35.4]} 25. Rxd3 {[%clk 0:00:15.7]} 25... g5 {[%clk 0:01:21.9]} 26. Ng2
{[%clk 0:00:04.3]} 26... Be6 {[%clk 0:01:18.2]} 27. Ne3 {[%clk 0:00:03.9]} 27...
Rea8 {[%clk 0:01:16.2]} 28. Nf5 {[%clk 0:00:03.5]} 28... Re2 {[%clk 0:00:48.8]}
29. Rcd1 {[%clk 0:00:03.2]} 29... h5 {[%clk 0:00:47.1]} 30. Rd8+ {[%clk
0:00:02.4]} 30... Rxd8 {[%clk 0:00:47.6]} 31. Rxd8+ {[%clk 0:00:03]} 31... Kh7
{[%clk 0:00:48.5]} 32. Nd6 {[%clk 0:00:03.4]} 32... Bxd6 {[%clk 0:00:41.2]} 33.
Rxd6 {[%clk 0:00:04.3]} 33... Bxc4 {[%clk 0:00:38.8]} 34. Rd7 {[%clk 0:00:03.9]}
34... b5 {[%clk 0:00:38]} 35. Rc7 {[%clk 0:00:03.3]} 35... Rxe4 {[%clk
0:00:36.5]} 36. h4 {[%clk 0:00:04]} 36... gxh4 {[%clk 0:00:34]} 37. gxh4 {[%clk
0:00:04.9]} 37... Rg4+ {[%clk 0:00:34.7]} 38. Kh2 {[%clk 0:00:04.8]} 38... Bd5
{[%clk 0:00:35.4]} 39. Bg3 {[%clk 0:00:05.1]} 39... b4 {[%clk 0:00:33]} 40. Bd6
{[%clk 0:00:05.1]} 40... Rxh4+ {[%clk 0:00:32.9]} 41. Kg3 {[%clk 0:00:04.6]}
41... Rg4+ {[%clk 0:00:33.8]} 42. Kf2 {[%clk 0:00:04.9]} 42... b3 {[%clk
0:00:34.7]} 43. Rb7 {[%clk 0:00:03.6]} 43... Kg6 {[%clk 0:00:33.7]} 44. Rb6
{[%clk 0:00:03.1]} 44... Kf5 {[%clk 0:00:33.8]} 45. Ke3 {[%clk 0:00:03]} 45...
h4 {[%clk 0:00:34.1]} 46. Rb8 {[%clk 0:00:01]} 46... Re4+ {[%clk 0:00:32.5]} 47.
Kd2 {[%clk 0:00:01.9]} 47... Re6 {[%clk 0:00:30.6]} 48. Kc3 {[%clk 0:00:02.8]}
48... Rxd6 {[%clk 0:00:30.8]} 49. Kd4 {[%clk 0:00:03.2]} 49... Rh6 {[%clk
0:00:30.1]} 50. Kc5 {[%clk 0:00:04.1]} 50... h3 {[%clk 0:00:30.1]} 51. Rb4
{[%clk 0:00:04]} 51... h2 {[%clk 0:00:30.2]} 52. Rd4 {[%clk 0:00:03.3]} 52...
h1=Q {[%clk 0:00:29.9]} 53. Rd2 {[%clk 0:00:02.8]} 53... Qg1+ {[%clk 0:00:29.7]}
54. Kb4 {[%clk 0:00:02.3]} 54... Qb6+ {[%clk 0:00:29.6]} 55. Kc3 {[%clk
0:00:01.6]} 55... Qa5+ {[%clk 0:00:29.8]} 56. Kb2 {[%clk 0:00:02.5]} 56... Qxd2+
{[%clk 0:00:29.3]} 57. Ka3 {[%clk 0:00:03.4]} 57... Qa5+ {[%clk 0:00:29.4]} 58.
Kb2 {[%clk 0:00:03]} 58... Rh2+ {[%clk 0:00:30.1]} 59. Kc1 {[%clk 0:00:02.5]}
59... Qe1# {[%clk 0:00:31]} 0-1